[Event "MPL 35th National U-20 Girls Chess-ch 20"]
[Site "Haryana"]
[Date "2022.03.09"]
[Round "2.6"]
[White "Swara Lakshmi S Nair"]
[Black "Srimathi R"]
[Result "1/2-1/2"]
[ECO "B35"]
[WhiteElo "1383"]
[BlackElo "1944"]
[Annotator "ChessBase"]
[PlyCount "78"]
[EventDate "2022.03.09"]
[EventCountry "IND"]
[SourceTitle "playchess.com"]
[Source "ChessBase"]
[SourceQuality "1"]
[TimeControl "5400+30"]

1. e4 {[%emt 0:01:03]} c5 {[%emt 0:00:26]} 2. Nf3 {[%emt 0:00:11]} Nc6 {[%emt 0:00:07]} 3. d4 {[%emt 0:00:28]} cxd4 {[%emt 0:00:08]} 4. Nxd4 {[%emt 0:00:08]} g6 {[%emt 0:00:08]} 5. Nc3 {[%emt 0:00:38]} Bg7 {[%emt 0:00:06]} 6. Be3 {[%emt 0:00:10]} Nf6 {[%emt 0:00:09]} 7. Bc4 {[%emt 0:03:04]} O-O {[%emt 0:00:08]} 8. Bb3 {[%emt 0:00:44]} a5 {[%emt 0:00:11]} 9. O-O {[%emt 0:02:55]} d6 {[%emt 0:00:46]} 10. f3 {[%emt 0:06:12]} Bd7 {[%emt 0:00:28]} 11. a3 {[%emt 0:23:59]} Nxd4 {[%emt 0:02:19]} 12. Bxd4 {[%emt 0:00:12]} Bc6 {[%emt 0:00:06]} 13. Nd5 {[%emt 0:04:08]} e6 {[%emt 0:10:27]} 14. Nxf6+ {[%emt 0:01:38]} Bxf6 {[%emt 0:00:05]} 15. c4 {[%emt 0:08:12]} b5 {[%emt 0:11:21]} 16. Rc1 {[%emt 0:13:12]} bxc4 {[%emt 0:11:53]} 17. Bxc4 {[%emt 0:00:16]} d5 {[%emt 0:02:12]} 18. exd5 {[%emt 0:04:12]} Bxd5 {[%emt 0:01:55]} 19. Bxd5 {[%emt 0:01:10]} exd5 {[%emt 0:00:05]} 20. Rc6 {[%emt 0:06:01]} Be7 {[%emt 0:02:12]} 21. Qd2 {[%emt 0:05:41]} Qd7 {[%emt 0:03:37]} 22. Rfc1 {[%emt 0:03:11]} Rfe8 {[%emt 0:07:41]} 23. Qf4 {[%emt 0:07:19]} Rac8 {[%emt 0:07:40]} 24. Rxc8 {[%emt 0:04:00]} Rxc8 {[%emt 0:00:05]} 25. Rxc8+ {[%emt 0:00:29]} Qxc8 {[%emt 0:00:04]} 26. Qe5 {[%emt 0:02:37]} Qc1+ {[%emt 0:00:19]} 27. Kf2 {[%emt 0:00:06]} Qd2+ {[%emt 0:00:04]} 28. Kg3 {[%emt 0:00:08]} Bd6 {[%emt 0:00:08]} 29. Qxd6 {[%emt 0:00:15]} Qxd4 30. b4 {[%emt 0:01:16]} axb4 {[%emt 0:00:08]} 31. axb4 {[%emt 0:00:04]} Qc3 {[%emt 0:06:40]} 32. b5 {[%emt 0:01:38]} d4 {[%emt 0:01:02]} 33. b6 {[%emt 0:00:10]} Qb2 {[%emt 0:00:20]} 34. Qc7 {[%emt 0:00:55]} Qd2 {[%emt 0:00:50]} 35. b7 {[%emt 0:01:00]} Qg5+ {[%emt 0:00:06]} 36. Kf2 {[%emt 0:00:08]} Qd2+ {[%emt 0:00:17]} 37. Kg3 {[%emt 0:00:09]} Qg5+ {[%emt 0:00:05]} 38. Kf2 {[%emt 0:00:16]} Qd2+ {[%emt 0:00:14]} 39. Kg3 {[%emt 0:00:16]} Qg5+ {[%emt 0:01:05]} 1/2-1/2

[Event "MPL 35th National U-20 Girls Chess-ch 20"]
[Site "Haryana"]
[Date "2022.03.10"]
[Round "3.6"]
[White "Velpula Sarayu"]
[Black "Varshita Jain"]
[Result "1-0"]
[ECO "C42"]
[WhiteElo "1875"]
[BlackElo "1491"]
[Annotator "NA RC"]
[PlyCount "99"]
[EventDate "2022.03.09"]
[EventCountry "IND"]
[SourceTitle "playchess.com"]
[Source "ChessBase"]
[SourceQuality "1"]
[TimeControl "5400+30"]

1. e4 {[%emt 0:00:03]} e5 {[%emt 0:00:01]} 2. Nf3 {[%emt 0:00:13]} Nf6 {[%emt 0:00:06]} 3. Nxe5 {[%emt 0:00:15]} d6 {[%emt 0:00:06]} 4. Nf3 {[%emt 0:00:21]} Nxe4 {[%emt 0:00:03]} 5. Nc3 {[%emt 0:00:07]} Nxc3 {[%emt 0:00:07]} 6. dxc3 {[%emt 0:00:35]} Be7 {[%emt 0:00:30]} 7. Be3 {[%emt 0:00:30]} Nd7 {[%emt 0:00:00]} 8. Qd2 {[%emt 0:00:07]} Nf6 {[%emt 0:00:00]} 9. O-O-O {[%emt 0:01:37]} Be6 {[%emt 0:00:32]} 10. Kb1 {[%emt 0:03:56]} O-O {[%emt 0:03:38]} 11. Bd3 {[%emt 0:05:42]} d5 {[%emt 0:00:54]} 12. Nd4 {[%emt 0:07:51]} c5 {[%emt 0:03:39]} 13. Nxe6 {[%emt 0:03:07]} fxe6 {[%emt 0:00:08]} 14. c4 {[%emt 0:09:54]} Ng4 {[%emt 0:19:46]} 15. Qe2 {[%emt 0:02:12]} Nxe3 {[%emt 0:08:19]} 16. Qxe3 {[%emt 0:00:06]} Rf6 {[%emt 0:02:26]} 17. cxd5 {[%emt 0:01:08]} exd5 {[%emt 0:00:24]} 18. Bc4 {[%emt 0:00:22]} Qf8 {[%emt 0:19:11]} 19. Rxd5 {[%emt 0:07:42]} Kh8 {[%emt 0:00:24]} 20. Re1 {[%emt 0:02:01]} Bd6 {[%emt 0:05:27]} 21. Bd3 {[%emt 0:00:52]} Qf7 {[%emt 0:01:38]} 22. Qe4 {[%emt 0:02:41]} g6 {[%emt 0:01:04]} 23. g3 {[%emt 0:00:27]} Bf8 {[%emt 0:02:39]} 24. Bc4 {[%emt 0:01:17]} Qg7 {[%emt 0:09:10]} 25. Red1 {[%emt 0:00:40]} Rb6 {[%emt 0:03:44]} 26. Bb3 {[%emt 0:20:01]} Qf6 {[%emt 0:03:17]} (26... Qe7 {is a better defense.} 27. Qd3 Re8) 27. Qe5 {[%emt 0:03:44]} Qxe5 {[%emt 0:00:34]} 28. Rxe5 {[%emt 0:00:03]} c4 {[%emt 0:00:13]} 29. Bxc4 {[%emt 0:00:06]} Rc8 {[%emt 0:05:05]} 30. Bb3 {[%emt 0:00:25]} Rd6 {[%emt 0:03:07]} 31. Rxd6 {[%emt 0:04:48]} Bxd6 {[%emt 0:00:02]} 32. Re2 {[%emt 0:00:08]} Bc5 {[%emt 0:00:35]} 33. f4 {[%emt 0:01:05]} Rd8 {[%emt 0:00:26]} 34. Kc1 {[%emt 0:06:14]} Kg7 {[%emt 0:00:17]} 35. Bc4 {[%emt 0:01:01]} Rd7 {[%emt 0:01:59]} 36. Bd3 {[%emt 0:06:48]} Bd4 {[%emt 0:01:29]} 37. Bb5 {[%emt 0:02:01]} Rc7 {[%emt 0:00:38]} 38. c3 {[%emt 0:00:57]} a6 {[%emt 0:00:44]} 39. Bd3 {[%emt 0:00:23]} Kf6 {[%emt 0:02:34]} 40. Be4 {[%emt 0:01:46]} b5 {[%emt 0:01:51]} 41. Kd2 {[%emt 0:03:38]} Ba7 {[%emt 0:00:58]} 42. Bd3 {[%emt 0:00:23]} Rd7 {[%emt 0:00:53]} 43. Kc2 {[%emt 0:01:58]} Bg1 {[%emt 0:01:13]} 44. h3 {[%emt 0:00:21]} h5 {[%emt 0:01:17]} (44... Re7 $16 {was necessary.} 45. Kd2 Bc5) 45. Re5 {[%emt 0:01:00]} Bf2 {[%emt 0:01:16]} (45... Rd6 $142 46. Rg5 Kg7) 46. Rg5 {[%emt 0:00:36]} Rg7 {[%emt 0:00:01]} 47. h4 {[%emt 0:00:14]} Bb6 {[%emt 0:00:40]} 48. Kd2 {[%emt 0:01:10]} Bf2 {[%emt 0:00:29]} 49. f5 {[%emt 0:00:14]} gxf5 $18 {[%emt 0:00:13]} (49... Ra7 $142 50. Rxg6+ Kf7) 50. Rxf5+ {[%emt 0:00:04]} 1-0

[Event "MPL 35th National U-20 Girls Chess-ch 20"]
[Site "Haryana"]
[Date "2022.03.10"]
[Round "4.4"]
[White "Divyabharathi Masanam"]
[Black "Velpula Sarayu"]
[Result "1-0"]
[ECO "B35"]
[WhiteElo "1711"]
[BlackElo "1875"]
[Annotator "NA RC"]
[PlyCount "95"]
[EventDate "2022.03.09"]
[EventCountry "IND"]
[SourceTitle "playchess.com"]
[Source "ChessBase"]
[SourceQuality "1"]
[TimeControl "5400+30"]

{[%evp 13,62,18,27,35,15,12,2,23,24,12,16,22,5,14,32,21,52,47,72,52,66,72,79,32767,32767,85,117,122,129,110,32767,32767,32767,32767,27,54,88,82,66,0,33,41,122,89,84,29,150,152,367,372,339]} 1. e4 {[%emt 0:00:34]} c5 {[%emt 0:02:17]} 2. Nf3 {[%emt 0:00:39]} g6 {[%emt 0:00:14]} 3. d4 {[%emt 0:00:43]} cxd4 {[%emt 0:00:06]} 4. Nxd4 {[%emt 0:00:40]} Nc6 {[%emt 0:00:08]} 5. Nc3 {[%emt 0:00:27]} Bg7 {[%emt 0:00:11]} 6. Be3 {[%emt 0:00:53]} Nf6 {[%emt 0:00:22]} 7. Bc4 {[%emt 0:01:00]} O-O {[%emt 0:00:33]} 8. Bb3 {[%emt 0:01:01]} Re8 {[%emt 0:00:25]} 9. f3 {[%emt 0:02:59]} e6 {[%emt 0:00:57]} 10. Qd3 {[%emt 0:10:26]} d5 {[%emt 0:04:16]} 11. O-O-O {[%emt 0:02:21]} Nxd4 {[%emt 0:20:45]} 12. Bxd4 {[%emt 0:00:10]} e5 {[%emt 0:02:14]} 13. Bf2 {[%emt 0:00:43]} d4 $1 {[%emt 0:00:15]} ({Much less strong is} 13... Bh6+ 14. Kb1 $14) 14. Kb1 {[%emt 0:03:47]} ({Much weaker is} 14. Qc4 Qe7 15. Nb5 Bd7 $17) 14... Qc7 {[%emt 0:04:52]} (14... Qe7 $11 {is more appropriate.} 15. Ne2 Nd7) 15. Ne2 {[%emt 0:04:09]} Be6 {[%emt 0:02:36]} (15... Nd7 $11) 16. Bxe6 {[%emt 0:06:49]} Rxe6 {[%emt 0:00:07]} 17. c3 {[%emt 0:00:05]} dxc3 $1 {[%emt 0:13:15]} 18. Nxc3 {[%emt 0:00:10]} Bf8 {[%emt 0:04:11]} 19. Bh4 {[%emt 0:10:16]} Nh5 {[%emt 0:05:07]} ({Black should play} 19... Qa5 $14) 20. Nd5 {[%emt 0:01:34]} Qa5 {[%emt 0:01:33]} 21. Be1 {[%emt 0:03:24]} Qa4 {[%emt 0:03:44]} 22. Qc2 {[%emt 0:02:09]} Qxc2+ {[%emt 0:01:46]} 23. Kxc2 {[%emt 0:00:05]} Rc8+ {[%emt 0:03:40]} 24. Bc3 {[%emt 0:01:19]} Nf4 {[%emt 0:01:30]} (24... Bd6 $14) 25. Nxf4 {[%emt 0:04:32]} exf4 {[%emt 0:00:05] [#]} 26. Kb1 {[%emt 0:01:28]} (26. Rd7 $1 $16) 26... Rb6 {[%emt 0:12:00]} 27. Bd4 {[%emt 0:02:01]} Rb4 {[%emt 0:01:54]} ({Black should try} 27... Bc5 $14) 28. Rd2 {[%emt 0:06:48]} a5 {[%emt 0:01:17]} 29. Rhd1 {[%emt 0:03:11]} (29. Be5 $16) 29... Rb5 {[%emt 0:00:51]} ({Black should play} 29... Bg7 $1 $14) 30. Bf6 {[%emt 0:01:12]} Rc6 $2 {[%emt 0:03:45]} (30... Rb6 $16) 31. e5 {[%emt 0:04:06]} Re6 $18 {[%emt 0:04:51]} 32. Rd8 {[%emt 0:00:48]} Rbxe5 {[%emt 0:00:48]} 33. Bxe5 {[%emt 0:01:01]} Rxe5 {[%emt 0:00:03]} 34. R8d5 {[%emt 0:00:25]} Re2 {[%emt 0:00:15]} 35. R1d2 {[%emt 0:00:07]} Re1+ {[%emt 0:00:07]} 36. Rd1 {[%emt 0:00:26]} Re2 {[%emt 0:00:04]} 37. R5d2 {[%emt 0:00:07]} Re6 {[%emt 0:00:22]} 38. a3 {[%emt 0:00:32]} Bc5 {[%emt 0:00:25]} 39. Kc2 {[%emt 0:01:11]} Rc6 {[%emt 0:00:20]} 40. Kb3 {[%emt 0:01:01]} Re6 {[%emt 0:00:13]} 41. Kc4 {[%emt 0:01:04]} Be3 {[%emt 0:00:07]} 42. Rd6 {[%emt 0:00:49]} Rxd6 {[%emt 0:01:19]} 43. Rxd6 {[%emt 0:00:30]} h5 {[%emt 0:00:30]} 44. b3 {[%emt 0:00:30]} Kg7 {[%emt 0:00:30]} 45. Kb5 {[%emt 0:00:30]} b6 46. Rxb6 {[%emt 0:01:25]} Bxb6 {[%emt 0:00:00]} 47. Kxb6 {[%emt 0:00:04]} g5 {[%emt 0:00:00]} 48. Kxa5 {[%emt 0:00:06]} 1-0

[Event "MPL 35th National U-20 Girls Chess-ch 20"]
[Site "Haryana"]
[Date "2022.03.10"]
[Round "4.5"]
[White "Kriti Mayur Patel"]
[Black "Arushi Kotwal"]
[Result "1/2-1/2"]
[ECO "C11"]
[WhiteElo "1440"]
[BlackElo "1854"]
[Annotator "NA RC"]
[PlyCount "63"]
[EventDate "2022.03.09"]
[EventCountry "IND"]
[SourceTitle "playchess.com"]
[Source "ChessBase"]
[SourceQuality "1"]
[TimeControl "5400+30"]

{[%evp 18,63,23,17,18,0,57,-13,32767,32767,32767,32767,0,-20,25,0,31,28,32767,32767,32767,32767,32767,32767,0,17,16,11,3,0,25,14,61,32767,32767,32767,32767,32767,77,73,112,32767,32767,32767,32767,32767,32767,3]} 1. e4 {[%emt 0:00:05]} e6 {[%emt 0:00:04]} 2. d4 {[%emt 0:00:04]} d5 {[%emt 0:00:03]} 3. Nc3 {[%emt 0:00:05]} Nf6 {[%emt 0:00:06]} 4. e5 {[%emt 0:00:05]} Nfd7 {[%emt 0:00:03]} 5. f4 {[%emt 0:00:16]} c5 {[%emt 0:00:06]} 6. Nf3 {[%emt 0:00:28]} Nc6 {[%emt 0:00:06]} 7. Be3 {[%emt 0:00:15]} cxd4 {[%emt 0:00:05]} 8. Nxd4 {[%emt 0:01:44]} Bc5 {[%emt 0:00:21]} 9. Qd2 {[%emt 0:01:34]} Nxd4 {[%emt 0:03:30]} 10. Bxd4 {[%emt 0:00:09]} a6 {[%emt 0:00:26]} 11. O-O-O {[%emt 0:01:58]} b5 {[%emt 0:00:44] [#]} ({Better is} 11... O-O $11) 12. Bxc5 {[%emt 0:05:08]} (12. Ne4 $1 $16 {[%cal Re4c5]} Be7 (12... dxe4 13. Bxc5) 13. Nd6+ Bxd6 14. exd6) 12... Nxc5 {[%emt 0:00:14]} 13. Qd4 {[%emt 0:01:49]} Qc7 {[%emt 0:01:28]} 14. g4 {[%emt 0:03:40]} Bb7 {[%emt 0:01:58]} 15. Bg2 {[%emt 0:04:42]} (15. h4 $142) 15... Nd7 {[%emt 0:02:07]} (15... Rb8 $15) 16. Rhe1 {[%emt 0:04:42]} Qc5 {[%emt 0:02:22]} 17. Qxc5 Nxc5 {[%emt 0:00:06]} 18. Ne2 {[%emt 0:10:01]} h5 {[%emt 0:02:05]} 19. h3 {[%emt 0:03:48]} hxg4 {[%emt 0:02:41]} 20. hxg4 {[%emt 0:00:20]} g6 {[%emt 0:00:21]} 21. Rh1 {[%emt 0:02:36]} Ke7 22. Nd4 Rac8 {[%emt 0:03:48]} 23. Kb1 {[%emt 0:04:50]} Nd7 {[%emt 0:01:52]} 24. g5 {[%emt 0:06:57]} Nb6 {[%emt 0:06:44]} (24... b4 $1 $11) 25. Rxh8 {[%emt 0:10:43]} Rxh8 {[%emt 0:00:14]} 26. Rh1 {[%emt 0:00:12]} Rxh1+ {[%emt 0:00:15]} 27. Bxh1 {[%emt 0:00:04]} b4 {[%emt 0:04:36]} 28. b3 {[%emt 0:01:10]} Nd7 {[%emt 0:03:05]} ({Black should try} 28... Kd7) 29. Kb2 {[%emt 0:02:53]} Kd8 {[%emt 0:02:54]} 30. a3 {[%emt 0:01:07]} bxa3+ {[%emt 0:01:58]} 31. Kxa3 {[%emt 0:00:07]} Kc7 {[%emt 0:00:35]} 32. Bg2 $11 {[%emt 0:05:04]} 1/2-1/2

[Event "MPL 35th National U-20 Girls Chess-ch 20"]
[Site "Haryana"]
[Date "2022.03.11"]
[Round "5.4"]
[White "Tanishka Kotia"]
[Black "Kriti Mayur Patel"]
[Result "1-0"]
[ECO "C24"]
[WhiteElo "1849"]
[BlackElo "1440"]
[Annotator "NA RC"]
[PlyCount "109"]
[EventDate "2022.03.09"]
[EventCountry "IND"]
[SourceTitle "playchess.com"]
[Source "ChessBase"]
[SourceQuality "1"]
[TimeControl "5400+30"]

1. e4 {[%emt 0:00:10]} e5 {[%emt 0:00:05]} 2. Bc4 {[%emt 0:00:09]} Nf6 {[%emt 0:00:09]} 3. d3 {[%emt 0:00:07]} Nc6 {[%emt 0:01:11]} 4. Nc3 {[%emt 0:00:17]} Bc5 {[%emt 0:02:59]} 5. f4 {[%emt 0:01:00]} d6 {[%emt 0:02:12]} 6. Nf3 {[%emt 0:01:17]} Bg4 {[%emt 0:08:21]} 7. Na4 {[%emt 0:01:07]} Bb6 {[%emt 0:07:06]} 8. Nxb6 {[%emt 0:02:27]} axb6 {[%emt 0:00:09]} 9. c3 {[%emt 0:09:31]} Bxf3 {[%emt 0:04:31]} 10. Qxf3 {[%emt 0:11:04]} h6 {[%emt 0:05:48]} 11. O-O {[%emt 0:03:31]} O-O {[%emt 0:02:34]} 12. Bb3 {[%emt 0:06:37]} b5 {[%emt 0:06:07]} 13. Be3 {[%emt 0:20:25]} Kh7 {[%emt 0:03:32]} ({Black should try} 13... b4) 14. Qh3 {[%emt 0:02:09]} (14. fxe5 $18 Nxe5 15. Qf5+ Kg8 16. d4) 14... Qd7 {[%emt 0:05:22] [#]} 15. f5 $1 {[%emt 0:00:33]} Rh8 {[%emt 0:02:32]} 16. Bg5 {[%emt 0:07:16]} Qe7 {[%emt 0:01:41]} 17. Rf3 {[%emt 0:03:48]} Kg8 {[%emt 0:02:21]} 18. Bxf6 {[%emt 0:00:01]} Qxf6 {[%emt 0:00:26]} 19. Rg3 {[%emt 0:00:17]} Kf8 {[%emt 0:02:16] [#]} (19... Kh7 $1 $11 {keeps the balance.}) 20. Rf1 $1 {[%emt 0:00:35]} Ke7 {[%emt 0:01:51] [#]} (20... Ke8 $16 {might work better.}) 21. Rxg7 $1 {[%emt 0:01:02]} Raf8 {[%emt 0:04:50]} 22. Qg3 {[%emt 0:03:18]} Na5 $2 {[%emt 0:01:26] [#]} (22... Kd8 {is more resistant.} 23. a4 Na5) 23. Bxf7 $1 {[%emt 0:03:17]} Rxf7 {[%emt 0:04:09]} 24. Rg6 {[%emt 0:00:22]} Rhf8 {[%emt 0:00:53]} 25. Rxf6 {[%emt 0:00:48]} Rxf6 {[%emt 0:00:02]} 26. d4 {[%emt 0:03:09]} Nc6 {[%emt 0:00:57]} 27. Qd3 {[%emt 0:01:05]} Rb8 {[%emt 0:03:08]} 28. Rf3 {[%emt 0:03:08]} Kf7 {[%emt 0:05:08]} 29. Qxb5 {[%emt 0:01:00]} Ke7 {[%emt 0:01:11]} 30. Qd5 {[%emt 0:01:47]} Rbf8 {[%emt 0:03:14]} 31. Rg3 {[%emt 0:02:05]} R8f7 {[%emt 0:00:51]} 32. Qb5 {[%emt 0:01:36]} exd4 {[%emt 0:00:25]} 33. Qxb7 {[%emt 0:00:22]} Kd7 {[%emt 0:00:24]} 34. Rg8 {[%emt 0:00:58]} Rf8 {[%emt 0:00:27]} 35. Rg7+ {[%emt 0:00:29]} R8f7 $18 {[%emt 0:00:53]} 36. Rxf7+ {[%emt 0:00:12]} Rxf7 {[%emt 0:00:05]} 37. cxd4 {[%emt 0:00:09]} Re7 {[%emt 0:00:58]} 38. Qb5 {[%emt 0:00:30]} Rxe4 {[%emt 0:01:08]} 39. d5 {[%emt 0:00:12]} Re5 {[%emt 0:00:29]} 40. Qxc6+ {[%emt 0:00:33]} Kd8 {[%emt 0:00:31]} 41. f6 {[%emt 0:00:45]} Rf5 {[%emt 0:00:16]} 42. Qa8+ {[%emt 0:00:13]} Kd7 {[%emt 0:00:07]} 43. Qg8 {[%emt 0:00:10]} Rxf6 {[%emt 0:00:20]} 44. Qg7+ {[%emt 0:00:08]} Kc8 {[%emt 0:00:10]} 45. Qxf6 {[%emt 0:00:06]} Kb7 {[%emt 0:00:06]} 46. Qxh6 {[%emt 0:00:16]} Kb6 {[%emt 0:00:06]} 47. g4 {[%emt 0:00:09]} Kb7 48. g5 {[%emt 0:00:04]} c6 49. dxc6+ {[%emt 0:00:07]} Kxc6 {[%emt 0:00:17]} 50. g6 {[%emt 0:00:03]} Kc7 {[%emt 0:00:04]} 51. g7 {[%emt 0:00:05]} Kb7 {[%emt 0:00:03]} 52. g8=Q {[%emt 0:00:07]} Ka7 {[%emt 0:00:03]} 53. Qxd6 {[%emt 0:00:10]} Kb7 {[%emt 0:00:04]} 54. Qg7+ {[%emt 0:00:08]} Kc8 {[%emt 0:00:05]} 55. Qdc7# {[%emt 0:00:05]} 1-0

[Event "MPL 35th National U-20 Girls Chess-ch 20"]
[Site "Haryana"]
[Date "2022.03.11"]
[Round "6.1"]
[White "Priyanka Nutakki"]
[Black "Lakshmi C"]
[Result "1-0"]
[ECO "E73"]
[WhiteElo "2301"]
[BlackElo "1968"]
[Annotator "ChessBase"]
[PlyCount "113"]
[EventDate "2022.03.09"]
[EventCountry "IND"]
[SourceTitle "playchess.com"]
[Source "ChessBase"]
[SourceQuality "1"]
[TimeControl "5400+30"]

1. d4 {[%emt 0:00:15]} Nf6 {[%emt 0:00:21]} 2. c4 {[%emt 0:00:10]} g6 {[%emt 0:00:08]} 3. Nc3 {[%emt 0:00:07]} Bg7 {[%emt 0:00:08]} 4. e4 {[%emt 0:00:05]} d6 {[%emt 0:00:08]} 5. Be2 {[%emt 0:00:24]} O-O {[%emt 0:07:03]} 6. Be3 {[%emt 0:00:06]} Na6 {[%emt 0:14:30]} 7. Nf3 {[%emt 0:02:33]} Ng4 {[%emt 0:15:17]} 8. Bg5 {[%emt 0:00:44]} c5 {[%emt 0:05:01]} 9. d5 {[%emt 0:09:14]} f5 {[%emt 0:19:21]} 10. exf5 {[%emt 0:06:00]} Bxf5 {[%emt 0:02:28]} 11. h3 {[%emt 0:00:38]} Nf6 {[%emt 0:11:15]} 12. Bd3 {[%emt 0:01:14]} Qd7 {[%emt 0:00:30]} 13. a3 {[%emt 0:10:35]} e5 {[%emt 0:01:47]} 14. Be2 {[%emt 0:07:39]} Qf7 {[%emt 0:04:22]} 15. Be3 {[%emt 0:00:39]} Nc7 {[%emt 0:04:04]} 16. Ng5 {[%emt 0:01:42]} Qe8 {[%emt 0:06:33]} 17. g4 {[%emt 0:00:09]} Bc8 {[%emt 0:00:34]} 18. Nge4 {[%emt 0:03:54]} Qd7 {[%emt 0:01:26]} 19. b4 {[%emt 0:06:27]} b6 {[%emt 0:00:31]} 20. Rb1 {[%emt 0:01:08]} Nce8 {[%emt 0:03:42]} 21. Ng5 {[%emt 0:02:28]} Nc7 {[%emt 0:00:39]} 22. Bf3 {[%emt 0:01:09]} Ba6 {[%emt 0:00:48]} 23. Ne6 Nxe6 24. dxe6 {[%emt 0:01:58]} Qxe6 {[%emt 0:00:52]} 25. g5 {[%emt 0:07:13]} e4 {[%emt 0:00:48]} 26. Be2 {[%emt 0:00:19]} Nd7 {[%emt 0:00:36]} 27. Nd5 {[%emt 0:00:01]} Rac8 {[%emt 0:00:21]} 28. Qa4 {[%emt 0:01:33]} Nb8 {[%emt 0:00:41]} 29. Bg4 {[%emt 0:00:30]} Qe5 {[%emt 0:00:31]} 30. Bxc8 {[%emt 0:02:24]} Bxc4 {[%emt 0:00:18]} 31. Bb7 {[%emt 0:04:12]} Bxd5 {[%emt 0:00:39]} 32. Bxd5+ {[%emt 0:00:06]} Qxd5 {[%emt 0:00:02]} 33. Qb3 {[%emt 0:02:51]} c4 {[%emt 0:00:32]} 34. Qc2 {[%emt 0:00:06]} Nc6 35. Rd1 {[%emt 0:01:03]} Nd4 {[%emt 0:01:25]} 36. Rxd4 {[%emt 0:00:14]} Bxd4 {[%emt 0:00:29]} 37. Qd2 {[%emt 0:00:01]} c3 {[%emt 0:00:34]} 38. Qxd4 {[%emt 0:00:04]} Qxd4 {[%emt 0:00:22]} 39. Bxd4 {[%emt 0:00:01]} Rf3 {[%emt 0:00:24]} 40. Be3 {[%emt 0:02:32]} d5 41. Ke2 {[%emt 0:00:12]} Kf7 {[%emt 0:00:40]} 42. Rc1 {[%emt 0:00:20]} Ke6 {[%emt 0:00:54]} 43. Rxc3 {[%emt 0:00:29]} Rxh3 {[%emt 0:00:24]} 44. a4 {[%emt 0:05:18]} Kd6 {[%emt 0:00:30]} 45. a5 {[%emt 0:02:47]} bxa5 {[%emt 0:00:44]} 46. bxa5 {[%emt 0:00:00]} a6 {[%emt 0:00:11]} 47. Rc8 {[%emt 0:00:00]} Ke5 {[%emt 0:00:49]} 48. Re8+ {[%emt 0:05:16]} Kf5 {[%emt 0:00:15]} 49. Rf8+ {[%emt 0:04:42]} Ke5 {[%emt 0:00:20]} 50. Ra8 {[%emt 0:02:34]} Kf5 {[%emt 0:00:52]} 51. Rxa6 {[%emt 0:00:41]} d4 {[%emt 0:00:22]} 52. Bxd4 {[%emt 0:00:11]} Kxg5 {[%emt 0:00:06]} 53. Be3+ {[%emt 0:00:07]} Kf5 {[%emt 0:00:04]} 54. Ra8 {[%emt 0:00:08]} Rh1 {[%emt 0:00:04]} 55. a6 {[%emt 0:00:03]} Ra1 {[%emt 0:00:10]} 56. a7 {[%emt 0:00:05]} Ra2+ {[%emt 0:00:03]} 57. Kf1 {[%emt 0:00:03]} 1-0